bitfinex/quotes_BTCUSD_20240803
["timestamp","ask_amount","ask_price","bid_price","bid_amount"]
[1722695703032,0.71321024,62212.0,62211.0,0.000913]
[1722695703414,0.81206528,62212.0,62211.0,0.000913]
[1722695703829,0.11168514,62212.0,62211.0,0.239056]
[1722695704055,0.01283,62212.0,62211.0,0.239056]
[1722695704259,0.01283,62212.0,62211.0,0.57245735]
[1722695704891,0.01283,62212.0,62211.0,1.21542935]
[1722695705107,0.01283,62212.0,62211.0,1.27732935]
[1722695705788,0.00583,62212.0,62211.0,1.27732935]
[1722695706198,0.01283,62212.0,62211.0,1.27832935]
[1722695706619,0.00083,62212.0,62211.0,1.27732935]
[1722695706829,0.00283,62212.0,62211.0,1.27732935]
[1722695707249,0.00083,62212.0,62211.0,1.27732935]
[1722695707679,0.00583,62212.0,62211.0,1.27732935]
[1722695708127,0.00183,62212.0,62211.0,1.27732935]
[1722695708342,0.00183,62212.0,62211.0,1.27932935]
[1722695708547,0.00183,62212.0,62211.0,1.28964445]
[1722695725128,0.00183,62212.0,62211.0,1.61113045]
[1722695725340,0.00183,62212.0,62211.0,1.71048366]
[1722695726227,0.00183,62212.0,62211.0,1.70848366]
[1722695726456,0.00083,62212.0,62211.0,1.70848366]
[1722695727145,0.00183,62212.0,62211.0,1.72692636]
[1722695727616,0.00183,62212.0,62211.0,1.71692636]
[1722695727842,0.00083,62212.0,62211.0,1.72292636]
[1722695728078,0.00083,62212.0,62211.0,1.73292636]
[1722695728079,0.00183,62212.0,62211.0,1.73292636]
[1722695728309,0.00183,62212.0,62211.0,1.72292636]
[1722695729696,0.00283,62212.0,62211.0,1.73292636]
[1722695731171,0.00283,62212.0,62211.0,1.63313045]
[1722695731398,0.00283,62212.0,62211.0,1.73265637]
[1722695731607,0.00283,62212.0,62211.0,1.89324903]
[1722695732330,0.00315456,62221.0,62220.0,1.27174]
[1722695732826,0.00315456,62221.0,62220.0,2.29637422]
[1722695733069,0.00906,62227.0,62226.0,0.299504]
[1722695733314,0.00906,62227.0,62226.0,1.98858511]
[1722695733555,0.00906,62227.0,62226.0,2.00356413]
[1722695734558,0.01006,62227.0,62226.0,2.01356413]
[1722695734806,0.01006,62227.0,62226.0,1.92827826]
[1722695735050,0.01006,62227.0,62226.0,2.02845703]
[1722695736247,0.01006,62227.0,62226.0,1.92827826]
[1722695737852,0.01006,62227.0,62226.0,2.02855462]
[1722695738052,0.00906,62233.0,62232.0,0.242589]
[1722695738255,0.00906,62233.0,62232.0,0.307389]
[1722695738676,0.00906,62233.0,62232.0,2.11759348]
[1722695738919,0.00906,62233.0,62232.0,2.43897148]
[1722695739162,0.07875194,62240.0,62239.0,1.124693]
[1722695739375,0.00906,62244.0,62242.0,0.481989]
[1722695739581,0.00906,62244.0,62242.0,0.885215]
[1722695739787,0.00906,62244.0,62242.0,1.206541]
[1722695739999,0.00906,62244.0,62242.0,1.22145627]
[1722695742079,0.00906,62244.0,62242.0,1.23145627]
[1722695743330,0.00906,62244.0,62242.0,1.23945627]
[1722695745820,0.00906,62244.0,62242.0,1.25003234]
[1722695753744,0.00906,62244.0,62242.0,0.92870634]
[1722695755934,0.00906,62244.0,62242.0,0.03291527]
[1722695755935,0.953462,62243.0,62242.0,0.03291527]
[1722695756143,0.07106,62243.0,62242.0,0.51490427]
[1722695756358,0.07106,62243.0,62242.0,0.499989]
[1722695756577,0.07106,62243.0,62242.0,0.040401]
[1722695757025,0.07106,62243.0,62242.0,0.022401]
[1722695757026,0.78960024,62243.0,62242.0,0.022401]
[1722695757239,1.11092124,62243.0,62242.0,0.022401]
[1722695757444,1.11092124,62243.0,62234.0,0.01042435]
[1722695757445,0.062,62236.0,62234.0,0.01042435]
[1722695757649,0.07875194,62235.0,62234.0,0.01042435]
[1722695757863,0.07875194,62235.0,62232.0,0.00157439]
[1722695757864,0.15785194,62235.0,62232.0,0.160688]
[1722695758076,0.160686,62233.0,62229.0,0.160696]
[1722695758481,0.160686,62233.0,62228.0,0.796397]
[1722695758482,0.160689,62232.0,62228.0,0.635698]
[1722695758921,0.15785194,62235.0,62228.0,0.475]
[1722695759203,0.222679,62236.0,62231.0,0.0764]
[1722695759204,0.062,62236.0,62231.0,0.0764]
[1722695759454,0.332384,62243.0,62238.0,0.48202]
[1722695759455,0.07875194,62239.0,62238.0,0.48202]
[1722695760408,0.07875194,62239.0,62238.0,0.160673]
[1722695760632,0.07875194,62239.0,62238.0,0.803367]
[1722695760850,0.07875194,62239.0,62238.0,0.48202]
[1722695761061,0.07875194,62239.0,62238.0,0.160673]
[1722695761264,0.07875194,62239.0,62237.0,0.160675]
[1722695761974,0.08175194,62239.0,62238.0,0.48202]
[1722695761975,0.08175194,62239.0,62238.0,0.803367]
[1722695762463,0.07875194,62239.0,62238.0,0.803367]
[1722695762956,0.07875194,62239.0,62238.0,0.48202]
[1722695764009,0.07875194,62239.0,62238.0,0.803367]
[1722695764218,0.07875194,62239.0,62238.0,0.48202]
[1722695764426,0.08175194,62239.0,62238.0,0.48202]
[1722695764635,0.07875194,62239.0,62238.0,0.48202]
[1722695765044,0.08175194,62239.0,62238.0,0.48202]
[1722695765676,0.08175194,62239.0,62238.0,0.803367]
[1722695766779,0.08175194,62239.0,62238.0,0.48202]
[1722695767220,0.08175194,62239.0,62238.0,0.50446947]
[1722695768335,0.08175194,62239.0,62238.0,0.83181647]
[1722695768760,0.08175194,62239.0,62238.0,0.51046947]
[1722695768987,0.08175194,62239.0,62238.0,0.02844947]
[1722695768988,0.70596294,62239.0,62238.0,0.02844947]
[1722695769231,1.02730394,62239.0,62238.0,0.02844947]
[1722695769500,1.02730394,62239.0,62238.0,0.006]
[1722695769719,0.70596294,62239.0,62238.0,0.006]
[1722695769928,0.70596294,62239.0,62238.0,0.02844684]
[1722695770558,0.70596294,62239.0,62238.0,0.03144684]
[1722695770778,0.22395194,62239.0,62238.0,0.02244684]
[1722695770988,0.22395194,62239.0,62238.0,0.02444684]
[1722695770989,0.38462194,62239.0,62238.0,0.02444684]
[1722695771193,0.38762194,62239.0,62238.0,0.002]
[1722695771411,0.38762194,62239.0,62238.0,0.02244684]
[1722695771412,0.38462194,62239.0,62238.0,0.02244684]
[1722695771634,0.22395194,62239.0,62234.0,0.33154918]
[1722695771859,0.22695194,62239.0,62238.0,0.02244684]
[1722695772098,0.22695194,62239.0,62237.0,0.160675]
[1722695772311,0.22695194,62239.0,62238.0,0.02244684]
[1722695772533,0.38762194,62239.0,62236.0,0.160676]
[1722695772754,0.38762194,62239.0,62238.0,0.02244684]
[1722695772963,0.22695194,62239.0,62237.0,0.18385336]
[1722695773171,0.22695194,62239.0,62238.0,0.0231719]
[1722695773599,0.38462294,62239.0,62236.0,0.160678]
[1722695773806,0.38462294,62239.0,62238.0,0.0231719]
[1722695774034,0.38762294,62239.0,62237.0,0.02317736]
[1722695774234,0.22395194,62239.0,62238.0,0.0231719]
[1722695774438,0.22395194,62239.0,62238.0,0.1838449]
[1722695774614,0.22395194,62239.0,62237.0,0.160675]
[1722695774868,0.22395194,62239.0,62238.0,0.0231719]
[1722695775068,0.22695194,62239.0,62238.0,0.0231719]
[1722695775275,0.22695194,62239.0,62237.0,0.160675]
[1722695775480,0.38762194,62239.0,62238.0,0.0231719]
[1722695775684,0.38762194,62239.0,62236.0,0.160678]
[1722695775894,0.38762194,62239.0,62238.0,0.0231719]
[1722695776187,0.38762194,62239.0,62233.0,0.000913]
[1722695776188,0.22695194,62239.0,62233.0,0.000913]
[1722695776423,0.321347,62238.0,62233.0,0.161597]
[1722695776629,0.0645,62237.0,62233.0,0.161597]
[1722695776844,0.160679,62236.0,62233.0,0.000913]
[1722695777046,0.321347,62238.0,62233.0,0.000913]
[1722695777047,0.803417,62234.0,62233.0,0.000913]
[1722695777272,0.867917,62234.0,62233.0,0.000913]
[1722695777474,0.948617,62234.0,62233.0,0.000913]
[1722695777682,1.10607624,62234.0,62233.0,0.000913]
[1722695777874,1.57394324,62234.0,62233.0,0.000913]
[1722695778067,1.42744324,62234.0,62233.0,0.000913]
[1722695778423,1.45044324,62234.0,62233.0,0.002913]
[1722695778622,1.45044324,62234.0,62233.0,0.000913]
[1722695780102,1.45644324,62234.0,62233.0,0.001913]
[1722695780540,1.45044324,62234.0,62233.0,0.000913]
[1722695780677,1.45644324,62234.0,62233.0,0.001913]
[1722695781086,1.45644324,62234.0,62233.0,0.000913]
[1722695781292,1.46644324,62234.0,62233.0,0.001913]
[1722695781494,1.46844324,62234.0,62233.0,0.002913]
[1722695782194,2.53656324,62234.0,62233.0,0.002913]
[1722695782423,1.57844324,62234.0,62233.0,0.002913]
[1722695784276,1.89981024,62234.0,62233.0,0.002913]
[1722695785576,1.89981024,62234.0,62214.0,0.00157439]
[1722695785577,0.803662,62215.0,62214.0,0.00157439]
[1722695785781,0.482221,62212.0,62211.0,0.000913]
[1722695786005,1.435183,62212.0,62211.0,0.000913]
[1722695786217,1.75614224,62212.0,62211.0,0.000913]
[1722695786835,1.43466124,62212.0,62211.0,0.000913]
[1722695787451,1.43566124,62212.0,62211.0,0.006913]
[1722695787648,1.43466124,62212.0,62211.0,0.000913]
[1722695788005,1.44166124,62212.0,62211.0,0.001913]
[1722695788411,1.45166124,62212.0,62211.0,0.002913]
[1722695788822,1.77314224,62212.0,62211.0,0.002913]
[1722695788995,1.83434224,62212.0,62211.0,0.002913]
[1722695791249,1.91664224,62212.0,62211.0,0.002913]
[1722695791877,1.77014224,62212.0,62211.0,0.002913]
[1722695792568,2.10162324,62212.0,62211.0,0.002913]
[1722695792783,1.57614224,62212.0,62211.0,0.002913]
[1722695793172,1.56614224,62212.0,62211.0,0.002913]
[1722695796518,1.57614224,62212.0,62211.0,0.002913]
[1722695797074,1.89762324,62212.0,62211.0,0.002913]
[1722695797782,3.27026224,62212.0,62211.0,0.002913]
[1722695797961,3.26026224,62212.0,62211.0,0.002913]
[1722695799343,3.27026224,62212.0,62211.0,0.002913]
[1722695800817,3.46524324,62212.0,62211.0,0.002913]
[1722695801032,1.91762324,62212.0,62211.0,0.002913]
[1722695801359,2.40870424,62212.0,62211.0,0.002913]
[1722695801568,2.08722324,62212.0,62211.0,0.002913]
[1722695801852,3.78134324,62212.0,62211.0,0.002913]
[1722695801991,2.40870424,62212.0,62211.0,0.102913]
[1722695802191,2.08722324,62212.0,62211.0,0.102913]
[1722695802390,1.88762324,62212.0,62211.0,0.102913]
[1722695802821,1.87062324,62212.0,62211.0,0.100913]
[1722695803043,1.88362324,62212.0,62211.0,0.101913]
[1722695803442,1.56214224,62212.0,62211.0,0.101913]
[1722695803647,1.47984224,62212.0,62211.0,0.101913]
[1722695804023,1.80132324,62212.0,62211.0,0.101913]
[1722695804380,1.81532324,62212.0,62211.0,0.101913]
[1722695805450,1.49384224,62212.0,62211.0,0.101913]
[1722695806923,1.59258072,62212.0,62211.0,0.101913]
[1722695807327,4.63970072,62212.0,62211.0,0.101913]
[1722695808633,3.81253872,62212.0,62211.0,0.101913]
[1722695808835,0.81869924,62212.0,62211.0,0.101913]
[1722695809075,0.98816124,62212.0,62211.0,0.101913]
[1722695809478,0.98816124,62212.0,62211.0,0.099692]
[1722695809902,0.97516124,62212.0,62211.0,0.098692]
[1722695810103,1.29664224,62212.0,62211.0,0.098692]
[1722695810306,1.36474224,62212.0,62211.0,0.098692]
[1722695810513,1.46355991,62212.0,62211.0,0.098692]
[1722695810714,1.44955991,62212.0,62211.0,0.098692]
[1722695810924,1.34774224,62212.0,62211.0,0.098692]
[1722695811106,1.35374224,62212.0,62211.0,0.098692]
[1722695811312,1.46541603,62212.0,62211.0,0.099692]
[1722695811439,1.45941603,62212.0,62211.0,0.099692]
[1722695811641,1.52383087,62212.0,62211.0,0.099692]
[1722695811846,1.53783087,62212.0,62211.0,0.099692]
[1722695812049,1.45873087,62212.0,62211.0,0.099692]
[1722695812495,1.47173087,62212.0,62211.0,0.099692]
[1722695812713,1.45873087,62212.0,62211.0,0.098692]
[1722695812913,1.45873087,62212.0,62211.0,0.099692]
[1722695812914,1.46873087,62212.0,62211.0,0.099692]
[1722695813972,2.68935087,62212.0,62211.0,0.099692]
[1722695814146,3.16285087,62212.0,62211.0,0.099692]
[1722695814940,2.84116889,62212.0,62211.0,0.099692]
[1722695815157,2.37318789,62212.0,62211.0,0.099692]
[1722695815359,2.37318789,62212.0,62211.0,0.162992]
[1722695815360,0.82556789,62212.0,62211.0,0.162992]
[1722695815558,0.82556789,62212.0,62211.0,0.18716638]
[1722695815559,0.50408689,62212.0,62211.0,0.18716638]
[1722695815785,0.27893289,62212.0,62211.0,0.162992]
[1722695815984,0.18045924,62212.0,62211.0,0.245992]
[1722695816182,0.18045924,62212.0,62211.0,0.27016638]
[1722695817164,0.023,62212.0,62211.0,0.27016638]
[1722695817981,0.18374,62212.0,62211.0,0.27016638]
[1722695818191,1.08263329,62212.0,62211.0,0.12386638]
[1722695818540,1.40411429,62212.0,62211.0,0.099692]
[1722695820379,1.08263329,62212.0,62211.0,0.099692]
[1722695820727,0.76115229,62212.0,62211.0,0.245192]
[1722695820949,0.43967129,62212.0,62211.0,0.245192]
[1722695821155,0.43967129,62212.0,62211.0,0.26934203]
[1722695821525,0.76115229,62212.0,62211.0,0.26934203]
[1722695821733,1.08291132,62212.0,62211.0,0.20474203]
[1722695821939,0.76143032,62212.0,62211.0,0.180592]
[1722695822362,0.27920932,62212.0,62211.0,0.20473939]
[1722695822972,0.12175008,62212.0,62211.0,0.20473939]
[1722695823184,0.12175008,62212.0,62211.0,1.07305439]
[1722695823185,0.023,62212.0,62211.0,1.07305439]
[1722695824207,0.013,62212.0,62211.0,1.07205439]
[1722695824414,0.7055,62215.0,62214.0,0.627706]
[1722695824614,0.7055,62215.0,62214.0,0.1455]
[1722695824822,0.7055,62215.0,62214.0,0.33036267]
[1722695826548,0.7085,62215.0,62214.0,0.16962767]
[1722695826753,0.7145,62215.0,62214.0,0.16962767]
[1722695827776,0.7145,62215.0,62214.0,0.33036267]
[1722695829231,0.7145,62215.0,62214.0,0.16962767]
[1722695829639,0.7145,62215.0,62214.0,0.33036267]
[1722695829640,0.79325194,62215.0,62214.0,0.33036267]
[1722695830420,0.79325194,62215.0,62214.0,0.16962767]
[1722695831432,0.95398394,62215.0,62214.0,0.16962767]
[1722695831839,1.75437318,62215.0,62214.0,0.02412767]
[1722695832040,0.482221,62212.0,62211.0,0.099605]
[1722695832201,0.96116124,62212.0,62211.0,0.099605]
[1722695832396,1.28264224,62212.0,62211.0,0.099605]
[1722695833428,1.28464224,62212.0,62211.0,0.099605]
[1722695834354,1.38301854,62212.0,62211.0,0.099605]
[1722695834512,1.38701854,62212.0,62211.0,0.099605]
[1722695834709,1.43520057,62212.0,62211.0,0.099605]
[1722695834940,1.43320057,62212.0,62211.0,0.099605]
[1722695835142,1.44020057,62212.0,62211.0,0.099605]
[1722695835556,1.43320057,62212.0,62211.0,0.099605]
[1722695835757,1.43920057,62212.0,62211.0,0.099605]
[1722695835956,1.54549159,62212.0,62211.0,0.099605]
[1722695836366,1.47321854,62212.0,62211.0,0.099605]
[1722695836792,1.47321854,62212.0,62211.0,0.100605]
[1722695836793,1.57658261,62212.0,62211.0,0.100605]
[1722695838347,1.57622878,62212.0,62211.0,0.100605]
[1722695838758,1.47986471,62212.0,62211.0,0.100605]
[1722695839983,1.89874571,62212.0,62211.0,0.100605]
[1722695840119,1.88874571,62212.0,62211.0,0.100605]
[1722695840322,1.91874571,62212.0,62211.0,0.100605]
[1722695840529,2.29558949,62212.0,62211.0,0.100605]
[1722695840845,2.15104339,62212.0,62211.0,0.100605]
[1722695841272,2.13404339,62212.0,62211.0,0.099605]
[1722695841475,2.60364339,62212.0,62211.0,0.099605]
[1722695841685,2.61164339,62212.0,62211.0,0.100605]
[1722695841976,2.61136149,62212.0,62211.0,0.100605]
[1722695842423,2.38132324,62212.0,62211.0,0.100605]
[1722695842623,2.6317077,62212.0,62211.0,0.100605]
[1722695842753,2.9531887,62212.0,62211.0,0.100605]
[1722695844473,2.9559892,62212.0,62211.0,0.100605]
[1722695845105,2.9359892,62212.0,62211.0,0.100605]
[1722695845306,2.1449082,62212.0,62211.0,0.100605]
[1722695845511,1.59885461,62212.0,62211.0,0.100605]
[1722695845724,1.39465411,62212.0,62211.0,0.180705]
[1722695845934,1.49099702,62212.0,62211.0,0.180705]
[1722695846139,1.49099702,62212.0,62211.0,0.179705]
[1722695846140,0.34172617,62212.0,62211.0,0.179705]
[1722695846319,0.33219924,62212.0,62211.0,0.179705]
[1722695846549,0.34619924,62212.0,62211.0,0.179705]
[1722695846877,0.66768024,62212.0,62211.0,0.179705]
[1722695847075,0.65368024,62212.0,62211.0,0.179705]
[1722695847489,0.66568024,62212.0,62211.0,0.179705]
[1722695847684,0.98716124,62212.0,62211.0,0.179705]
[1722695847909,0.97516124,62212.0,62211.0,0.179705]
[1722695848470,0.96116124,62212.0,62211.0,0.179705]
[1722695848676,0.63968024,62212.0,62211.0,0.179705]
[1722695848871,0.64568024,62212.0,62211.0,0.179705]
[1722695849498,0.64768024,62212.0,62211.0,0.179705]
[1722695850817,0.32619924,62212.0,62211.0,0.179705]
[1722695851019,0.64768024,62212.0,62211.0,0.179705]
[1722695851552,0.64768024,62212.0,62211.0,1.04382]
[1722695851553,0.008,62212.0,62211.0,1.04382]
[1722695851758,0.008,62212.0,62211.0,0.722334]
[1722695852129,0.008,62212.0,62211.0,1.0639723]
[1722695852581,0.008,62212.0,62211.0,0.7424863]
[1722695853105,0.008,62212.0,62211.0,1.0639723]
[1722695854039,0.008,62212.0,62211.0,0.4210003]
[1722695854697,0.008,62212.0,62211.0,0.7424863]
[1722695855613,0.008,62212.0,62211.0,0.4210003]
[1722695856107,0.008,62212.0,62211.0,0.7424863]
[1722695856548,0.008,62212.0,62211.0,0.4210003]
[1722695857087,0.008,62212.0,62211.0,0.7424863]
[1722695859276,0.00883,62212.0,62211.0,0.7424863]
[1722695861397,0.00883,62212.0,62211.0,0.2602573]
[1722695861832,0.00883,62212.0,62211.0,0.4210003]
[1722695864787,0.00843,62212.0,62211.0,0.4210003]
[1722695867609,0.16917,62212.0,62211.0,0.2602573]
[1722695867817,0.00843,62212.0,62211.0,0.2602573]
[1722695868451,0.16917,62212.0,62211.0,0.2602573]
[1722695868851,0.16917,62212.0,62211.0,0.1998573]
[1722695869353,0.00843,62212.0,62211.0,0.1998573]
[1722695869645,0.16917,62212.0,62211.0,0.1998573]
[1722695871620,0.490651,62212.0,62211.0,0.1197573]
[1722695871849,0.96959124,62212.0,62211.0,0.1197573]
[1722695872003,0.96959124,62212.0,62211.0,0.099605]
[1722695872204,0.64811024,62212.0,62211.0,0.099605]
[1722695872424,0.96959124,62212.0,62211.0,0.099605]
[1722695872627,0.96759124,62212.0,62211.0,0.099605]
[1722695873042,0.97159124,62212.0,62211.0,0.099605]
[1722695873471,0.64051024,62212.0,62211.0,0.099605]
[1722695873665,0.64851024,62212.0,62211.0,0.099605]
[1722695873874,0.33002924,62212.0,62211.0,0.099605]
[1722695874072,0.64351024,62212.0,62211.0,0.099605]
[1722695874317,0.65051024,62212.0,62211.0,0.11970386]
[1722695874836,0.64351024,62212.0,62211.0,0.11970386]
[1722695875036,0.64651024,62212.0,62211.0,0.11970386]
[1722695875148,0.96199124,62212.0,62211.0,0.11970386]
[1722695875421,0.96399124,62212.0,62211.0,0.099605]
[1722695875825,0.96199124,62212.0,62211.0,0.099605]
[1722695876260,0.64351024,62212.0,62211.0,0.099605]
[1722695876665,0.64051024,62212.0,62211.0,0.099605]
[1722695876867,0.64051024,62212.0,62211.0,0.241905]
[1722695876868,0.32802924,62212.0,62211.0,0.241905]
[1722695877073,0.32102924,62212.0,62211.0,0.241905]
[1722695877429,0.32102924,62212.0,62211.0,0.26200386]
[1722695877562,0.32702924,62212.0,62211.0,0.26200386]
[1722695877768,0.32102924,62212.0,62211.0,0.26200386]
[1722695877968,0.64251024,62212.0,62211.0,0.26200386]
[1722695878228,0.64551024,62212.0,62211.0,0.26200386]
[1722695878379,0.64351024,62212.0,62211.0,0.26200386]
[1722695878579,0.64951024,62212.0,62211.0,0.26200386]
[1722695878783,0.32802924,62212.0,62211.0,0.26200386]
[1722695879082,0.00983,62212.0,62211.0,0.42274686]
[1722695879410,0.00383,62212.0,62211.0,0.74423286]
[1722695879955,0.00383,62212.0,62211.0,1.06571886]
[1722695880140,0.00083,62212.0,62211.0,1.06571886]
[1722695880378,0.00283,62212.0,62211.0,1.06571886]
[1722695880815,0.00283,62212.0,62211.0,1.38720486]
[1722695881995,0.00283,62212.0,62211.0,1.48927527]
[1722695882208,0.00283,62212.0,62211.0,1.38720486]
[1722695884260,0.00283,62212.0,62211.0,1.70869086]
[1722695884477,0.00283,62212.0,62211.0,1.81075118]
[1722695885134,0.00283,62212.0,62211.0,1.96821042]
[1722695885390,0.126,62224.0,62223.0,0.80356]
[1722695885603,0.00083,62233.0,62232.0,0.866445]
[1722695885859,0.00083,62233.0,62232.0,0.942545]
[1722695886092,0.00083,62233.0,62232.0,0.96042671]
[1722695887264,0.00083,62233.0,62232.0,0.63904871]
[1722695887976,0.00483,62233.0,62232.0,0.63904871]
[1722695888423,0.00483,62233.0,62232.0,0.96042671]
[1722695888658,0.00183,62233.0,62232.0,0.96042671]
[1722695888857,0.00183,62233.0,62232.0,0.63904871]
[1722695889063,0.00183,62233.0,62232.0,0.01788171]
[1722695889528,0.00183,62233.0,62232.0,0.17855434]
[1722695889760,0.00283,62233.0,62232.0,0.17855434]
[1722695889959,0.00283,62233.0,62232.0,0.01786534]
[1722695890162,0.00283,62233.0,62230.0,0.17062575]
[1722695890370,0.07875194,62231.0,62230.0,0.17062575]
[1722695890608,0.07875194,62231.0,62228.0,0.0761]
[1722695890847,0.23944394,62231.0,62228.0,0.0761]
[1722695891099,0.15745924,62230.0,62219.0,0.0761]
[1722695891363,0.07875194,62224.0,62223.0,0.160712]
[1722695891603,0.07875194,62224.0,62223.0,0.482136]
[1722695892837,0.07875194,62224.0,62223.0,0.160712]
[1722695892838,0.001,62224.0,62223.0,0.160712]
[1722695893089,0.001,62224.0,62223.0,1.26729808]
[1722695893342,0.004,62231.0,62230.0,0.558182]
[1722695893872,0.004,62231.0,62230.0,0.87957]
[1722695894109,0.00083,62233.0,62232.0,0.803445]
[1722695894822,0.00083,62233.0,62232.0,0.482067]
[1722695895083,0.00083,62233.0,62232.0,0.803445]
[1722695895822,0.00283,62233.0,62232.0,0.803445]
[1722695896063,0.00083,62233.0,62232.0,0.803445]
[1722695896526,0.00183,62233.0,62232.0,0.803445]
[1722695897018,0.00183,62233.0,62230.0,0.236793]
[1722695897245,0.07875194,62231.0,62230.0,0.0761]
[1722695897495,0.07875194,62231.0,62228.0,0.160697]
[1722695897727,0.07875194,62231.0,62229.0,0.160696]
[1722695897973,0.07875194,62231.0,62226.0,0.1391]
[1722695897974,0.23944394,62231.0,62226.0,0.0761]
[1722695898239,0.07875194,62231.0,62228.0,0.160698]
[1722695898727,0.07875194,62231.0,62230.0,0.001]
[1722695898941,0.07875194,62231.0,62228.0,0.160698]
[1722695899173,0.07975194,62231.0,62228.0,0.160698]
[1722695899866,0.07975194,62231.0,62226.0,0.0761]
[1722695900151,0.07975194,62231.0,62224.0,0.321418]
[1722695900413,0.07875194,62231.0,62229.0,0.160696]
[1722695900909,0.07975194,62231.0,62229.0,0.160696]
[1722695901151,0.07875194,62231.0,62229.0,0.160696]
[1722695901405,0.07975194,62231.0,62229.0,0.160696]
[1722695901642,0.07975194,62231.0,62230.0,0.558382]
[1722695901643,0.07875194,62231.0,62230.0,0.558382]
[1722695901875,0.07875194,62231.0,62230.0,0.236994]
[1722695902101,0.07975194,62231.0,62230.0,0.236994]
[1722695902343,0.07975194,62231.0,62230.0,0.25481267]
[1722695902594,0.08275194,62231.0,62230.0,0.09411867]
[1722695902837,0.08275194,62231.0,62230.0,0.25481267]
[1722695903066,0.07975194,62231.0,62230.0,0.25481267]
[1722695903311,0.07975194,62231.0,62230.0,0.01781867]
[1722695903577,0.07975194,62231.0,62228.0,0.160699]
[1722695903847,0.07875194,62231.0,62230.0,0.01781867]
[1722695904054,0.07875194,62231.0,62228.0,0.160699]
[1722695904293,0.07975194,62231.0,62230.0,0.01781867]
[1722695904532,0.07875194,62231.0,62230.0,0.01781867]
[1722695905051,0.07975194,62231.0,62230.0,0.01781867]
[1722695905295,0.63942594,62231.0,62230.0,0.01781867]
[1722695905545,0.64642594,62231.0,62230.0,0.01781867]
[1722695905852,0.160696,62229.0,62226.0,0.160702]
[1722695906002,0.160697,62229.0,62226.0,0.160704]
[1722695906255,0.1607,62228.0,62224.0,0.160708]
[1722695906527,0.15745924,62229.0,62223.0,0.321424]
[1722695906763,0.1607,62228.0,62225.0,0.160706]
[1722695907013,0.160679,62236.0,62223.0,0.00321419]
[1722695907264,0.001,62231.0,62230.0,0.482081]
[1722695907511,0.066,62237.0,62230.0,0.482081]
[1722695907512,0.066,62237.0,62232.0,0.160689]
[1722695907749,0.15518194,62239.0,62232.0,0.558367]
[1722695907750,0.31585294,62239.0,62232.0,0.558367]
[1722695907984,0.31585294,62239.0,62232.0,0.236989]
[1722695907985,0.160676,62237.0,62232.0,0.236989]
[1722695908223,0.15518194,62239.0,62232.0,0.558367]
[1722695908454,0.160673,62238.0,62232.0,0.558367]
[1722695909389,0.07958194,62239.0,62232.0,0.879745]
[1722695909629,0.00083,62239.0,62232.0,1.587801]
[1722695910094,0.00083,62239.0,62232.0,1.69109783]
[1722695910332,0.00083,62239.0,62232.0,1.69109394]
[1722695910811,0.00083,62239.0,62238.0,1.124714]
[1722695911053,0.00083,62239.0,62238.0,1.88392024]
[1722695911694,0.00083,62239.0,62238.0,1.89392024]
[1722695912100,0.00083,62239.0,62238.0,1.99714102]
[1722695912305,0.00083,62239.0,62238.0,1.88392024]
[1722695912514,0.00063,62239.0,62238.0,1.88392024]
[1722695912723,0.00163,62239.0,62238.0,1.88392024]
[1722695913993,0.00163,62239.0,62238.0,1.89392024]
[1722695914629,0.00263,62239.0,62238.0,1.89592024]
[1722695914844,0.00263,62239.0,62238.0,1.88592024]
[1722695917142,0.00263,62239.0,62238.0,1.9043257]
[1722695921047,0.00263,62239.0,62238.0,1.28671946]
[1722695921192,0.00263,62239.0,62238.0,1.22141946]
[1722695922027,0.00063,62239.0,62238.0,1.21941946]
[1722695922571,0.00063,62239.0,62238.0,1.22041946]
[1722695922764,0.00063,62239.0,62238.0,1.21941946]
[1722695924333,0.00163,62239.0,62238.0,1.22141946]
[1722695924697,0.00163,62239.0,62238.0,1.22233246]
[1722695924878,0.00263,62239.0,62238.0,1.22233246]
[1722695926908,0.00263,62239.0,62238.0,0.90098546]
[1722695927106,0.00263,62239.0,62238.0,0.82468546]
[1722695929407,0.484641,62239.0,62238.0,0.02131846]
[1722695929660,0.548241,62239.0,62238.0,0.02131846]
[1722695929895,0.548241,62239.0,62238.0,0.02129311]
[1722695930137,0.548241,62239.0,62238.0,0.002913]
[1722695930662,0.868582,62239.0,62238.0,0.002913]
[1722695930929,0.869582,62239.0,62238.0,0.002913]
[1722695931277,0.949982,62239.0,62238.0,0.002913]
[1722695931516,0.99707409,62239.0,62238.0,0.002913]
[1722695931923,0.947982,62239.0,62238.0,0.000913]
[1722695932128,0.99707409,62239.0,62238.0,0.002913]
[1722695932331,0.948982,62239.0,62238.0,0.002913]
[1722695932531,1.10644124,62239.0,62238.0,0.000913]
[1722695932734,0.78510024,62239.0,62238.0,0.000913]
[1722695932943,0.78510024,62239.0,62238.0,0.001913]
[1722695933137,0.78510024,62239.0,62238.0,0.02032289]
[1722695933365,0.78510024,62239.0,62238.0,0.001913]
[1722695933569,0.78510024,62239.0,62238.0,0.02032289]
[1722695933808,0.78510024,62239.0,62238.0,0.001913]
[1722695934011,1.10644124,62239.0,62238.0,0.02032289]
[1722695934346,1.10644124,62239.0,62238.0,0.001913]
[1722695934347,0.78510024,62239.0,62238.0,0.001913]
[1722695934543,0.70470024,62239.0,62238.0,0.001913]
[1722695934678,0.70470024,62239.0,62238.0,0.02032289]
[1722695935081,1.02604124,62239.0,62238.0,0.02032289]
[1722695935289,1.02604124,62239.0,62238.0,0.001913]
[1722695936313,1.34738224,62239.0,62238.0,0.001913]
[1722695936515,1.4918362,62239.0,62238.0,0.001913]
[1722695936924,1.07413333,62239.0,62238.0,0.001913]
[1722695937137,1.1704965,62239.0,62238.0,0.001913]
[1722695937347,1.02604124,62239.0,62238.0,0.001913]
[1722695937548,1.12224122,62239.0,62238.0,0.001913]
[1722695937721,1.02604124,62239.0,62238.0,0.001913]
[1722695938128,1.34738224,62239.0,62238.0,0.001913]
[1722695938539,1.17008302,62239.0,62238.0,0.001913]
[1722695938741,1.07413333,62239.0,62238.0,0.001913]
[1722695939029,1.02604124,62239.0,62238.0,0.001913]